Cogmind - Beta 16 @@@ ROGUE MODE // 2025.12.07 @ 20:18:05 Player: Cracklepappy Result: Destroyed by DAS Turret with DAS Cannon Performance ------------- Evolutions (1) 500 Regions Visited (5) 1000 Robots Destroyed (146) 730 Value Destroyed (3005) 3005 Prototype IDs (47) 940 Alien Tech Used (0) 0 Bonus (743) 743 TOTAL SCORE: 6918 Bonus ------- High Alert Combat Kills 597 Follower Combat Kills 14 Aligned with FarCom 300 Friendly Fire -168 Cogmind --------- Core Integrity 0/400 Matter 225/300 Energy 100/100 System Corruption 0% Temperature Cool (0) Movement Treading (480) Ox4 Location -9/Exiles Parts ------- > --- POWER (1) -------- (None) > --- PROPULSION (2) --- Light Treads > --- UTILITY (2) ------ Huge Storage Unit > --- WEAPON (4) ------- Guided Plasma Cannon > --- INVENTORY (25) --- Light Deuterium Engine Cooling System Medium Matter Pod (100) Medium Matter Pod (100) Medium Matter Pod (100) Medium Matter Pod (100) Medium Matter Pod (2) High-capacity Matter Pod (18) High-capacity Matter Pod (0) High-capacity Matter Pod (200) Gravity Neutralizer Experimental Targeting Computer Heavy Assault Rifle Flak Gun Katana Peak State ------------ > --- POWER ------------ Heavy Ion Engine > --- PROPULSION ------- Compact Wheel Armored Wheel > --- UTILITY ---------- Huge Storage Unit Kinecellerator > --- WEAPON ----------- Heavy Assault Rifle Heavy Assault Rifle Heavy Assault Rifle Datajack > --- INVENTORY -------- Light Deuterium Engine Fission Core Fission Core Fission Core Light Treads Light Treads Light Treads Light Treads Cooling System High-capacity Matter Pod High-capacity Matter Pod 0b10 Alert Chip Light Armor Plating Chronowheel Guided Plasma Cannon Heavy Assault Rifle Heavy Assault Rifle Heavy Assault Rifle Heavy Assault Rifle Flak Gun Rocket Launcher Rocket Launcher Katana [Rating: 25] Favorites ----------- Power Heavy Ion Engine Engine Heavy Ion Engine Power Core Light Nuclear Core Propulsion Light Treads Treads Light Treads Wheel Wheel Utility Huge Storage Unit Device Disposable Heat Sink Storage Huge Storage Unit Processor Improved Targeting Computer Protection Light Armor Plating Weapon Heavy Assault Rifle Energy Gun Spread Laser Energy Cannon Guided Plasma Cannon Ballistic Gun Heavy Assault Rifle Ballistic Cannon Light Cannon Launcher EMP Blaster Special Weapon Mining Laser Impact Weapon Mace Slashing Weapon Katana Special Melee Weapon Datajack Build | -11 -10 -10 -9 -9 -9 ------- Run | Yrd Mat Min Mat Min Exi Slots Evolved 2 | . . . 2 . . Power . | . . . . . . Propulsion . | . . . . . . Utility . | . . . . . . Weapon 2 | . . . 2 . . Parts Attached 77 | 7 17 3 33 7 10 Power 6 | 1 1 1 3 . . Engine 5 | 1 . 1 3 . . Core 1 | . 1 . . . . Reactor . | . . . . . . Propulsion 22 | 2 1 1 11 4 3 Treads 15 | 2 1 1 7 1 3 Leg . | . . . . . . Wheel 7 | . . . 4 3 . Hover . | . . . . . . Flight . | . . . . . . Utility 16 | 2 8 . 4 1 1 Device 7 | 2 3 . 1 1 . Storage 4 | . 4 . . . . Processor 1 | . . . 1 . . Hackware . | . . . . . . Protection 4 | . 1 . 2 . 1 Artifact . | . . . . . . Weapon 33 | 2 7 1 15 2 6 Energy Gun 5 | . 3 . 2 . . Energy Cannon 1 | . . . . . 1 Ballistic Gun 12 | 2 1 . 6 2 1 Ballistic Cannon 8 | . 2 1 5 . . Launcher 3 | . . . 1 . 2 Special Weapon 1 | . 1 . . . . Impact Weapon 1 | . . . 1 . . Slashing Weapon 1 | . . . . . 1 Piercing Weapon . | . . . . . . Special Melee Weapon 1 | . . . . . 1 Unidentified Prototypes . | . . . . . . Parts Lost 24 | . 3 3 2 . 16 Power 3 | . 1 1 . . 1 Propulsion 8 | . . 2 1 . 5 Utility 5 | . 2 . 1 . 2 Weapon 8 | . . . . . 8 Highest Loss Streak 8 | . 1 3 1 . 8 To Critical Strikes 5 | . . . . . 5 Average Backups 20 | 2 14 24 24 25 20 Power . | . . . . 1 1 Propulsion 5 | . 4 7 6 8 3 Utility 5 | . 3 6 6 5 7 Weapon 8 | 1 6 8 10 8 7 Tool/Special . | . . . . . . Unused Backups 52 | 2 8 3 12 3 24 Power 9 | 2 2 . 1 . 4 Propulsion 9 | . 2 . 2 1 4 Utility 23 | . 2 2 6 . 13 Weapon 10 | . 2 1 3 2 2 Tool/Special 1 | . . . . . 1 Average Slot Usage (%) 96 | . 95 99 99 100 87 Engine 6 | . . 1 11 11 9 Core 5 | . 11 12 . . . Treads 18 | . 27 28 14 8 3 Wheel 5 | . . . 7 13 16 Device 6 | . 7 14 2 . 7 Storage 11 | . 11 14 11 11 11 Processor 1 | . . . 4 . . Protection 4 | . 7 . 3 10 1 Energy Gun 10 | . 16 27 3 . . Ballistic Gun 17 | . 5 . 22 44 29 Ballistic Cannon 6 | . 5 . 16 . . Peak Build Rating 25 | 5 15 18 22 24 25 Average Rating 16 | 3 11 14 19 20 20 On Entrance 13 | . 5 15 13 21 24 Avg Prop Armor Cover (%) 26 | 28 28 . 7 . . Naked Turns . | . . . . . . Heaviest Build 104 | 3 92 92 103 104 104 Greatest Support 40 | 40 40 40 40 40 40 Greatest Overweight (x) 10 | . 2 2 10 10 8 Average Overweight (x) 2 | . . 2 3 2 3 Largest Inventory Capacity 25 | 5 25 25 25 25 25 Average Capacity 22 | 5 15 25 25 25 25 Most Carried 25 | 5 25 25 25 25 25 Average Carried 20 | 2 14 24 24 24 20 Final Capacity 25 | 5 25 25 25 25 25 Final Carried 25 | 5 25 22 25 25 15 Class Distribution -------------------- 46% | Mutant 23% | Gunner 12% | Tank 7% | Scavenger-Gunner 7% | Scavenger-Tank Dominant Class ---------------- Mutant | -10/Materials Mutant | -10/Mines Gunner | -9/Materials Scavenger-Tank | -9/Mines Scavenger-Gunner | -9/Exiles Resources | -11 -10 -10 -9 -9 -9 ----------- Run | Yrd Mat Min Mat Min Exi Matter Collected 4976 | 302 888 220 2442 194 930 Remotely 88 | 88 . . . . . Salvage Created 4533 | 114 973 173 2837 303 133 Parts 295 | 9 67 9 190 18 2 Haulers Intercepted 8 | . 2 . 6 . . Recyclers Shooed 3 | 1 1 1 . . . Parts Field Recycled . | . . . . . . Retrieved Matter . | . . . . . . Parts Self-Destructed . | . . . . . . Prevented . | . . . . . . Parts Restored . | . . . . . . Kills | -11 -10 -10 -9 -9 -9 ------- Run | Yrd Mat Min Mat Min Exi Combat Hostiles Destroyed 91 | . 20 4 61 1 5 Melee 1 | . 1 . . . . Guns 47 | . 15 3 27 1 1 Cannons 26 | . 4 1 21 . . AOE 17 | . . . 13 . 4 Classes Destroyed 15 | 2 8 . 4 . 1 Worker 16 | . 5 1 6 4 . Builder 4 | . 1 . 3 . . Tunneler 7 | 3 2 . . 2 . Hauler 8 | . 2 . 6 . . Recycler 11 | 1 3 2 3 2 . Mechanic 2 | . 1 . 1 . . Operator 3 | . 2 . 1 . . Watcher 7 | . 3 . 4 . . Swarmer 22 | . 6 3 12 1 . Grunt 48 | . 14 . 34 . . Brawler 1 | . . . 1 . . Duelist 4 | . . . 4 . . Protector 1 | . . . 1 . . Sentry 9 | . . . 9 . . Assembled 4 | . . . . . 4 Thug 1 | . . . . 1 . Best Kill Streak 10 | 3 5 3 10 2 4 Combat Bots Only 9 | . 5 3 9 1 4 Max Kills in Single Turn 5 | 1 1 2 5 2 3 Gunslinging 1 | . . 1 1 . . Exploded 4 | . . . 4 . 3 Melee 1 | . 1 . . . . Uniques/NPCs Destroyed 2 | . . 1 . . 1 YI-UF0 (-10/Mines) 8R-AWN (-9/Exiles) Combat | -11 -10 -10 -9 -9 -9 -------- Run | Yrd Mat Min Mat Min Exi Hostile Shots Fired 368 | . 90 22 181 4 71 Missed 89 | . 23 5 53 1 7 Hits 279 | . 67 17 128 3 64 Melee 1 | . . . 1 . . Projectile 278 | . 67 17 127 3 64 AOE 16 | . . 16 . . . Critical Strikes 34 | . 1 . 2 . 31 Damage Taken 4876 | . 707 508 1671 43 1947 Core 577 | . 117 9 179 6 266 Absorbed by Shields . | . . . . . . Redirected to Shielding 5 | . . . 4 1 . Regen/Repaired (Parts) 273 | . 122 . 151 . . Core Remaining (%) 74 | 100 . 49 . . . Volleys Fired 321 | 15 108 18 125 8 47 Largest 4 | 2 2 2 4 4 4 Hottest 260 | 40 130 130 260 92 92 Shots Fired 806 | 30 201 26 420 32 97 Gun 518 | 30 164 16 210 32 66 Cannon 242 | . 36 10 196 . . Launcher 45 | . . . 14 . 31 Special 1 | . 1 . . . . Kinetic 660 | 30 124 10 398 32 66 Thermal 89 | . 65 16 8 . . Explosive 31 | . . . . . 31 Electromagnetic 26 | . 12 . 14 . . Robot Hit Streak 22 | 14 13 6 22 5 15 Robot Miss Streak 13 | 1 13 5 5 4 2 Penetration Max . | . . . . . . Secondary Targets 11 | . 2 2 7 . . Max Gunslinging Chain 1 | . 1 1 1 . . Shots Hit Robots 447 | 22 128 20 210 11 56 Core Hits 289 | 7 99 23 124 9 27 Critical Kills 1 | . . . 1 . . Critical Parts Destroyed 3 | . . 3 . . . Critical Strikes 6 | . 1 3 2 . . Destroy 4 | . . 3 1 . . Blast 2 | . 1 . 1 . . Melee Attacks 6 | . . . 1 . 5 Impact 1 | . . . 1 . . Slashing 1 | . . . . . 1 Piercing . | . . . . . . Sneak Attacks 4 | . . . . . 4 Combat Hostiles . | . . . . . . Follow-up Attacks . | . . . . . . Damage Inflicted 8461 | 223 1547 302 4813 227 1349 Guns 4416 | 223 1246 172 1780 190 805 Cannons 2108 | . 291 130 1687 . . Explosions 1876 | . . . 1332 . 544 Melee . | . . . . . . Ramming 61 | . 10 . 14 37 . Kinetic 5651 | 223 893 130 3410 190 805 Thermal 1474 | . 597 172 705 . . Explosive 544 | . . . . . 544 Electromagnetic 731 | . 47 . 684 . . Impact . | . . . . . . Slashing . | . . . . . . Piercing . | . . . . . . Highest Corruption . | . . . . . . Average Corruption . | . . . . . . Corruption Purged . | . . . . . . Corruption Blocked . | . . . . . . Overload Shots . | . . . . . . Overflow Damage 37 | . . . 30 7 . Projectiles . | . . . . . . Explosions 30 | . . . 30 . . Melee 7 | . . . . 7 . Knockbacks 15 | . 5 1 8 1 . Impact 1 | . . . . 1 . Kinetic 13 | . 5 1 7 . . Secondary 1 | . . . 1 . . Self-Inflicted Damage 197 | . . . 136 18 43 Shots 8 | . . . 6 . 2 Rammed 5 | . 2 . 2 1 . Targets Rammed 6 | . 3 . 2 1 . Kicked . | . . . . . . Crushed 1 | . 1 . . . . Highest Temperature 347 | . 226 150 347 26 220 Average Temperature 69 | . 59 56 76 12 106 Received Heat Transfer 897 | . 309 . 588 . . Effects 4 | . . . 4 . . Energy Bleed 1 | . . . 1 . . Interference 3 | . . . 3 . . Siege Activations . | . . . . . . Martial Activations . | . . . . . . Shielding Activations . | . . . . . . Robots Disrupted . | . . . . . . Combat Hostiles . | . . . . . . Robots Corrupted 1 | . . . . 1 . Combat Hostiles . | . . . . . . Parts Fried . | . . . . . . Impact Corruptions 1 | . . . . 1 . Robots Melted . | . . . . . . Combat Hostiles . | . . . . . . Parts Melted 2 | . 1 . 1 . . Heat Transferred 1567 | . 740 215 612 . . Parts Sabotaged . | . . . . . . Parts Stolen . | . . . . . . Parts Stripped . | . . . . . . Power Chain Reactions 5 | . . . 5 . . Alert | -11 -10 -10 -9 -9 -9 ------- Run | Yrd Mat Min Mat Min Exi Maximum Alert Level 4 | . . . 4 2 . Low Security (%) 68 | 100 100 100 30 36 . Level 1 13 | . . . 22 48 . Level 2 7 | . . . 16 14 . Level 3 7 | . . . 20 . . Level 4 3 | . . . 9 . . Level 5 . | . . . . . . High Security . | . . . . . . Max Security . | . . . . . . Sterilizations 1 | . . . 1 . . Peak Influence 1244 | 15 190 112 1244 481 . Initial 481 | . . 42 . 481 . Average 220 | 2 87 9 458 259 . Influence Increases 2772 | 20 755 88 1781 128 . Destroy 0b10 Robot/C 1720 | . 400 60 1200 60 . Destroy 0b10 Robot/NC 295 | 20 95 15 125 40 . Destroy Leader 380 | . 90 10 270 10 . Allied During Kill 3 | . . . . 3 . Successful Hack 89 | . 46 . 43 . . Select Force Hacks 90 | . 30 . 60 . . Disable Machine 60 | . 15 . 45 . . Destroy Structure 45 | . 4 3 38 . . Lose Combat Pursuer 90 | . 75 . . 15 . Influence Decreases 2772 | 20 645 198 547 1247 115 Entered New Map 936 | . . 68 . 753 115 Time Decay 1763 | 20 615 127 527 474 . Lost Part 53 | . 30 3 20 . . Lost Ally 20 | . . . . 20 . Squads Dispatched 17 | . 5 . 11 1 . Investigation 11 | . 4 . 6 1 . Extermination . | . . . . . . Reinforcement 2 | . 1 . 1 . . Assault 4 | . . . 4 . . Garrison . | . . . . . . Intercept . | . . . . . . Searches Triggered . | . . . . . . Construction Impeded . | . . . . . . Haulers Reinforced . | . . . . . . Active Scanning Responses . | . . . . . . Cargo Convoy Interrupts . | . . . . . . Stealth | -11 -10 -10 -9 -9 -9 --------- Run | Yrd Mat Min Mat Min Exi Distress Signals 3 | . 2 . 1 . . Communications Jammed . | . . . . . . Distress Signals . | . . . . . . Times Spotted 139 | . 46 3 76 3 11 Peak Tracking Total 11 | . 5 2 5 3 11 Tactical Retreats 9 | . 3 . . 1 5 Traps | -11 -10 -10 -9 -9 -9 ------- Run | Yrd Mat Min Mat Min Exi Traps Triggered 3 | . 2 . 1 . . Indirectly . | . . . . . . Trap Hack Attempts . | . . . . . . Triggered . | . . . . . . Disarmed . | . . . . . . Reprogrammed . | . . . . . . Reused . | . . . . . . Traps Extracted . | . . . . . . Installed . | . . . . . . Triggered . | . . . . . . Machines | -11 -10 -10 -9 -9 -9 ---------- Run | Yrd Mat Min Mat Min Exi Machines Disabled 7 | . 1 . 3 . 3 Max in Single Turn 1 | . 1 . 1 . 1 Machines Repaired . | . . . . . . Machines Dismantled . | . . . . . . Machines Sabotaged . | . . . . . . Overloaded Fab Kills . | . . . . . . Hacking | -11 -10 -10 -9 -9 -9 --------- Run | Yrd Mat Min Mat Min Exi Machines Accessed 26 | . 10 . 13 1 2 Terminals 15 | . 7 . 8 . . Fabricators . | . . . . . . Repair Stations 3 | . 1 . 2 . . Recycling Units 3 | . 2 . 1 . . Scanalyzers 2 | . . . 2 . . Garrison Access . | . . . . . . Total Hacks 89 | . 37 . 49 1 2 Successful 57 | . 22 . 32 1 2 Failed 31 | . 14 . 17 . . Catastrophic 5 | . 1 . 4 . . Database Lockouts 1 | . 1 . . . . Manual 46 | . 25 . 20 . 1 Terminals 50 | . 22 . 28 . . Fabricators . | . . . . . . Repair Stations 8 | . 6 . 2 . . Recycling Units 12 | . 9 . 3 . . Scanalyzers 16 | . . . 16 . . Garrison Access . | . . . . . . Terminal Hacks 17 | . 5 . 9 1 2 Record 1 | . . . . . 1 Part Schematic 1 | . . . 1 . . Robot Schematic 1 | . 1 . . . . Robot Analysis 1 | . . . 1 . . Prototype ID Bank 6 | . 2 . 4 . . Open Door 1 | . . . . 1 . Locate Traps 2 | . 1 . 1 . . Hauler Manifests 2 | . 1 . 1 . . Zone Layout 1 | . . . 1 . . Proto ID Catalog 1 | . . . . . 1 Fabricator Hacks . | . . . . . . Repair Station Hacks 4 | . 4 . . . . Scan Component 2 | . 2 . . . . Repair 2 | . 2 . . . . Recycling Unit Hacks 1 | . 1 . . . . Retrieve Components 1 | . 1 . . . . Scanalyzer 13 | . . . 13 . . Insert Component 4 | . . . 4 . . Analyze 3 | . . . 3 . . Retrieve Study 6 | . . . 6 . . Garrison Access Hacks . | . . . . . . Unauthorized Hacks 21 | . 11 . 10 . . Terminals 11 | . 6 . 5 . . Operators 1 | . 1 . . . . Skim 10 | . 5 . 5 . . Fabricators . | . . . . . . Repair Stations 2 | . . . 2 . . Patch 2 | . . . 2 . . Recycling Units 7 | . 5 . 2 . . Reject 3 | . 2 . 1 . . Mask 2 | . 2 . . . . Tunnel 2 | . 1 . 1 . . Scanalyzers 1 | . . . 1 . . Extract 1 | . . . 1 . . Garrison Access . | . . . . . . Data Cores Recovered . | . . . . . . Used . | . . . . . . Hacking Detections 17 | . 9 . 8 . . Full Trace Events 3 | . 2 . 1 . . Feedback Events . | . . . . . . Feedback Blocked . | . . . . . . Robot Schematics Acquired 1 | . 1 . . . . Robots Built . | . . . . . . Authchips . | . . . . . . Time . | . . . . . . Total Robot Build Rating . | . . . . . . Part Schematics Acquired 5 | . . . 5 . . Parts Built . | . . . . . . Authchips . | . . . . . . Time . | . . . . . . Total Part Build Rating . | . . . . . . Part Studies Acquired 6 | . . . 6 . . Parts Repaired 2 | . 2 . . . . Time 64 | . 64 . . . . Parts Recycled . | . . . . . . Recycled Matter . | . . . . . . Retrieved Matter . | . . . . . . Retrieved Components 10 | . 10 . . . . Parts Scanalyzed 3 | . . . 3 . . Part Schematics Acquired 3 | . . . 3 . . Parts Damaged 1 | . . . 1 . . Bothacking | -11 -10 -10 -9 -9 -9 ------------ Run | Yrd Mat Min Mat Min Exi Used RIF Installer . | . . . . . . Robots Hacked 4 | . . . . . 4 Non-combat 3 | . . . . . 3 Combat 1 | . . . . . 1 Robot Hacks Applied 4 | . . . . . 4 parse_system 4 | . . . . . 4 Relay Couplers Released . | . . . . . . Fabnet Peak Effective % . | . . . . . . Robots Rewired . | . . . . . . Allies Hacked . | . . . . . . Hacks Repelled . | . . . . . . Allies | -11 -10 -10 -9 -9 -9 -------- Run | Yrd Mat Min Mat Min Exi Total Allies 1 | . . . . 1 . Largest Group 1 | . . . . 1 . Highest-Rated Group 31 | . . . . 31 . Highest-Rated Ally 31 | . . . . 31 . Total Orders . | . . . . . . Ally Attacks 9 | . . . . 9 . Total Damage 41 | . . . . 41 . Kills 2 | . . . . 2 . Allies Corrupted . | . . . . . . Allies Melted . | . . . . . . Intel | -11 -10 -10 -9 -9 -9 ------- Run | Yrd Mat Min Mat Min Exi Active Infowar (turns) 235 | 20 215 . . . . Seismic 235 | 20 215 . . . . Robot Analysis Total 1 | . . . 1 . . Derelict Logs Recovered 4 | . . 2 . 2 . Drone Launches . | . . . . . . Drone Recoveries . | . . . . . . Exploration | -11 -10 -10 -9 -9 -9 ------------- Run | Yrd Mat Min Mat Min Exi Turns Passed 11090 | 110 3362 1614 3199 1211 1594 Spaces Moved 4704 | 67 1594 487 1113 627 816 Core 335 | 59 276 . . . . Treads 2567 | 8 1318 487 539 141 74 Legs . | . . . . . . Wheels 1802 | . . . 574 486 742 Hover . | . . . . . . Flight . | . . . . . . Fastest Speed 50 | 50 50 320 140 135 140 Average Speed 202 | 63 177 320 235 179 165 Slowest Speed 480 | 160 320 320 320 320 480 Overloaded Moves . | . . . . . . Propulsion Burnouts . | . . . . . . Robots Hopped . | . . . . . . Potential Cave-ins . | . . . . . . Cave-ins Triggered . | . . . . . . Exploration Rate (%) 75 | 4 96 100 84 98 72 Regions Visited 5 Branch Regions 3 Pre-discovered Areas 6 | . 1 1 3 . 1 Known Exits Taken 1 | . . . 1 . . Unknown Exits Taken 4 | 1 1 1 . 1 . Scrap Searched 3 | . . 1 . 2 . Spaces Dug 11 | . 1 . 1 . 9 Terrain Destroyed 121 | . 1 3 38 . 79 Melee 1 | . . . 1 . . Projectile 7 | . 1 3 3 . . AOE 113 | . . . 34 . 79 Terrain Rammed . | . . . . . . Walls Destroyed . | . . . . . . Machines Disabled . | . . . . . . Actions | -11 -10 -10 -9 -9 -9 --------- Run | Yrd Mat Min Mat Min Exi Total 5670 | 107 1936 521 1424 694 988 Wait 298 | 5 148 3 51 32 59 Move 4699 | 66 1593 486 1112 626 816 Hop . | . . . . . . Pick Up 114 | 8 39 4 39 6 18 Fast Attach 15 | 6 5 . 3 . 1 Attach 29 | 1 3 4 11 . 10 Detach 3 | 2 . 1 . . . Swap 77 | . 15 1 37 11 13 Drop 102 | 4 22 4 43 10 19 Fire 321 | 15 108 18 125 8 47 Melee 6 | . . . 1 . 5 Ram 1 | . . . . 1 . Kick . | . . . . . . Crush 5 | . 3 . 2 . . Escape Stasis . | . . . . . . Rewire . | . . . . . . Trap . | . . . . . . Miscellaneous . | . . . . . . Route ------- -11/Scrapyard -10/Materials (discovered 5 exits: *Mat x3 / [*Min x2]) -10/Mines (discovered 2 exits: *Mat x2) -9/Materials (discovered 5 exits: *Mat x3 / *Min x2) -9/Mines (discovered 3 exits: *Mat x2 / *Exi) -9/Exiles (discovered 1 exit: [*Min]) History --------- Turn | Location | Event 8 | -11/Scrapyard | Discovered new exit (range 15) 111 | -11/Scrapyard | Entered Materials 224 | -10/Materials | Discovered new exit (range 8) 250 | -10/Materials | Discovered new exit (range 16) 282 | -10/Materials | Discovered new exit (range 5) 332 | -10/Materials | Build established: Mutant 976 | -10/Materials | Discovered new exit (range 10) 976 | -10/Materials | Discovered new exit (range 7) 1249 | -10/Materials | Central database locked down 3300 | -10/Materials | Repaired Lgt. Nuclear Core 3328 | -10/Materials | Repaired Lgt. Treads 3473 | -10/Materials | Entered Mines 3578 | -10/Mines | Discovered new exit (range 6) 3731 | -10/Mines | Discovered new exit (range 9) 3747 | -10/Mines | Learned 8 Materials zone layouts 4013 | -10/Mines | A weapon hastily lodged in a ceiling crevice suddenly fell to the ground 4130 | -10/Mines | Learned location of Zion (-6) 4853 | -10/Mines | Core integrity fell below 50% 4856 | -10/Mines | Destroyed YI-UF0 4885 | -10/Mines | Lost 3 parts (1p2n) 5087 | -10/Mines | Entered Materials 5087 | -9/Materials | Evolved 2 slots: Weapon x2 5088 | -9/Materials | Identified exit to Materials 5088 | -9/Materials | Identified exit to Mines 5373 | -9/Materials | Build established: Gunner 6417 | -9/Materials | Discovered exit to Materials (range 16) 6922 | -9/Materials | Loaded intel: 2 repair station locations 7041 | -9/Materials | Learned location of 2 exits from Materials 7063 | -9/Materials | Learned location of Storage (-7) 7073 | -9/Materials | Learned Storage emergency access door positions 7074 | -9/Materials | Loaded intel: 12 terminal locations 7087 | -9/Materials | First assault squad dispatched 7153 | -9/Materials | Build established: Tank 7605 | -9/Materials | Build established: Gunner 7965 | -9/Materials | Sterilization system engaged 7965 | -9/Materials | Non-combat units ordered to evacuate 8011 | -9/Materials | Destroyed 9 combat bots 8025 | -9/Materials | Build established: Tank 8065 | -9/Materials | Combat units ordered to evacuate 8265 | -9/Materials | Ambient heat levels rising (+10) 8286 | -9/Materials | Entered Mines 8677 | -9/Mines | Joined a pair of Derelicts in attacking an 0b10 outpost 8809 | -9/Mines | Learned Materials stockpile data 8887 | -9/Mines | Discovered exit to Materials (range 8) 8894 | -9/Mines | Received a Mining Laser from a helpful Derelict 8999 | -9/Mines | Build established: Scavenger-Tank 9059 | -9/Mines | Discovered exit to Materials (range 8) 9283 | -9/Mines | Received a Rocket Launcher from a helpful Derelict 9382 | -9/Mines | Met a Derelict shopkeep closing up shop 9492 | -9/Mines | Deemed a non-threat by the Exiles lab entrance 9492 | -9/Mines | Discovered new exit (range 5) 9497 | -9/Mines | Entered Exiles 9532 | -9/Exiles | Met 8R-AWN 9559 | -9/Exiles | Met EX-HEX 9627 | -9/Exiles | Met EX-DEC 9711 | -9/Exiles | Discovered new exit (range 10) 9832 | -9/Exiles | Build established: Scavenger-Gunner 9859 | -9/Exiles | Met EX-BIN 9949 | -9/Exiles | Aligned with FarCom system 9950 | -9/Exiles | Given EX-Vault access code 9985 | -9/Exiles | Opened EX-Vault 9995 | -9/Exiles | Found Gui. Plasma Cannon 9999 | -9/Exiles | Found Chronowheel 10002 | -9/Exiles | Found 0b10 Alert Chip 10034 | -9/Exiles | Warned to stay clear of 0b10 Research branches 10511 | -9/Exiles | Attacked by the Exiles 10634 | -9/Exiles | Core integrity fell below 50% 10660 | -9/Exiles | Destroyed 8R-AWN 10674 | -9/Exiles | Found Exp. Targeting Computer 10678 | -9/Exiles | Lost 5 parts (1n1u3w) 10790 | -9/Exiles | Lost 3 parts (2n1u) 10856 | -9/Exiles | Core integrity fell below 20% 10890 | -9/Exiles | Lost 8 parts (1p2n5w) 11091 | -9/Exiles | Destroyed by DAS Turret with DAS Cannon Last Messages --------------- 10835_ Dropped Med. Matter Pod. 10836_ Extracted 100 matter. 10837_ Acquired Med. Matter Pod. 10838_ Dropped Med. Matter Pod. 10839_ Extracted 100 matter. 10839_ Acquired Med. Matter Pod. 10840_ Dropped Hcp. Matter Pod. 10841_ Extracted 200 matter. 10843_ Acquired Hcp. Matter Pod. 10844_ The unstable cave ceiling collapses. 10847_ Hvy. Assault Rifle+ destroyed. 10854_ The unstable cave ceiling collapses. 10857_ Lgt. Treads destroyed. 10859_ Rocket Launcher+ destroyed. 10859_ Arm. Wheel destroyed. 10859_ Knocked back. 10862_ Acquired 10 matter. 10863_ The unstable cave ceiling collapses. 10942_ Acquired Gui. Plasma Cannon. 11065_ Acquired 2 matter. Map ----- +----------------------------------------------------+ | #?????????????????????????????????????? ??????# | | ??????????????????????????????????????????????# | | #????????????????????????????????????????????## | | #????????????#######?????????????????????????#" | | #######??????#!!! "#?????????????????????????#" | | #""##?????# ########??????????????????#" | | #?????# " #??????????????????#" | | ##???## #######??????######???????#" | | #####" " " #?????????? """#???????#" | | ##" " # #??????????" """#???????## | | #"" #### #????????"" #????????# | | "## #?# #???????"" #????????#" | | ###### ###?# #??????"" "#????????#" | | ?????### # #??# #????? ""?????????#" | | #######" # #???# #?????" "?????????##" | | """"" ##???# #????# #????????##"" | | " ###### ##### ###?######"" | | !! "# %% " ##;##X# #"###""""""" | | ## % """""" " "" | | """"""#### # # "" """ " | | #########??#### ## % " " | | ??????????????# # # | | ??????????????##### # | | ??????????????????# ### | | ??????????????????### # % | | ??????????????????# ## #@ | | ??????????????????### """""" | | ????????????????????# ## ######" | | ????????????????????## ""##????## | | ?????????????????????# """##??????? | | ????????????????????? """##???????? | | ????????????????????? ""#????????? | | ????????????????????? ########??# | | ????????????????????? ## #### | | ????????????????????## t """ | | ????????????????????? ## | | ?????????????????????#? | | ???????????????????????## | | ????????????????????????#" " | | ????????????????????????#"""" ""## | | ????????????????????????#"" ""#### | | ????????????????????????#" """"##??# | | ????????????????????????#""" """#??## | | ????????????????????????## ""##??#! | | ?????????????????????????#"" """##???#" | | ?????????????????????????##""" ##????#" | | ??????????????????????????##"""" ##?????#!!" | | ???????????????????????????### #??????#### | | ?????????????????????????????##### ##?????????? | | ?????????????????????????????????## #??????????? | +----------------------------------------------------+ Best States ------------- Heat Dissipation 50 Coolant Potential 50 Energy Generation 14 Energy Capacity 280 Matter Stores 300 Matter Capacity 300 Sight Range 16 Terrain Scan Density 10 Armor Coverage 150 Core Shielding 20 Evasion (%) 50 Targeting Accuracy 6 Recoil Reduction 2 Kinecelleration 30 Item Schematics ----------------- Bore Cannon | -9/Materials | Scanalyzed Flight Unit | -9/Materials | Scanalyzed Hcp. Battery | -9/Materials | Extracted Weight Redist. System | -9/Materials | Hacked Rocket Launcher | -9/Materials | Scanalyzed Robot Schematics ------------------ M-13 Machinist | -10/Materials | Hacked Fabricated ------------ Nothing Repaired ---------- Lgt. Nuclear Core | 32% | -10/Materials Lgt. Treads | 37% | -10/Materials Studied --------- Flight Unit | -9/Materials | Hacked Hvy. Assault Rifle | -9/Materials | Hacked Lgt. Ion Engine | -9/Materials | Hacked Rocket Launcher | -9/Materials | Hacked VTOL Module | -9/Materials | Hacked Mni. Grenade Launcher | -9/Materials | Hacked Alien Tech Used ----------------- None Achievements -------------- Physics Hates This One Trick Challenges ------------ None Game ------ Seed MassControlMultirail Manual? 0 Play Time 01:02:54 Cumulative 1403.9 hours Start 2025.12.07 @ 19:06:05 End 2025.12.07 @ 20:18:05 Sessions 1 Manual Loads 0 Difficulty Rogue Special Mode None Game No. 639 Rogue 639 Adventurer 0 Explorer 0 Win Type - Total 28 Types 13/5/3/0/1/1/2/2/0/1 Lore% 93 Gallery% 90 Achievement% 70 Wizard Run 0 Options --------- Layout 0 ASCII 0 Keyboard 0 Movement Numpad Keybinds 0 Fullscreen 2 Font 24/Smallcaps Map View 76x50 Zoom Use 0% Tactical HUD 1 Map Filters NONE Filters SHIFT_HUE(315) Steam 1 RUN: 47f4d6a5-ebc1-4a3f-bb48-e0d6637d3024